bitfinex/quotes_SOLUSD_20230111
["timestamp","ask_amount","ask_price","bid_price","bid_amount"]
[1673400525833,46.86,16.014,15.993,37.0]
[1673400526043,46.86,16.014,15.994,20.0]
[1673400526259,46.86,16.014,15.995,37.0]
[1673400526570,20.0,16.013,15.992,112.8065]
[1673400526759,54.00832,16.012,15.992,112.8065]
[1673400526975,20.0,16.01,15.992,112.8065]
[1673400527195,20.0,16.008,15.992,112.8065]
[1673400527408,46.88,16.007,15.992,112.8065]
[1673400527613,20.0,16.006,15.992,112.8065]
[1673400528908,46.88,16.007,15.992,112.8065]
[1673400529095,17.0,16.006,15.992,112.8065]
[1673400529520,17.0,16.006,15.993,20.0]
[1673400529738,46.87,16.009,15.993,20.0]
[1673400529953,7.14832,16.011,15.993,20.0]
[1673400530167,46.86,16.012,15.993,20.0]
[1673400530379,46.86,16.012,15.995,20.0]
[1673400530582,46.86,16.013,15.995,40.0]
[1673400530803,66.86,16.014,15.996,20.0]
[1673400531533,66.86,16.014,15.997,109.6999]
[1673400531742,46.86,16.014,15.998,20.0]
[1673400532158,46.84,16.019,15.999,20.0]
[1673400532369,46.84,16.019,16.0,20.0]
[1673400532574,1111.93266951,16.019,16.0,134.5949]
[1673400533539,187.0,16.018,16.0,134.5949]
[1673400533725,46.85,16.017,16.0,134.5949]
[1673400533934,17.0,16.014,16.0,134.5949]
[1673400534163,20.0,16.013,16.0,134.5949]
[1673400534370,17.0,16.012,16.0,134.5949]
[1673400535197,17.0,16.013,16.0,20.0]
[1673400535407,20.0,16.01,16.0,20.0]
[1673400535615,17.0,16.009,15.998,20.0]
[1673400536256,54.00832,16.012,15.998,20.0]
[1673400536468,20.0,16.014,15.998,40.0]
[1673400537928,20.0,16.014,15.998,20.0]
[1673400538147,46.86,16.013,15.998,20.0]
[1673400538359,20.0,16.012,15.998,20.0]
[1673400538987,17.0,16.011,15.998,20.0]
[1673400539208,63.86,16.011,15.998,20.0]
[1673400539402,17.0,16.011,15.998,20.0]
[1673400539827,17.0,16.011,15.998,40.0]
[1673400540058,46.86,16.013,15.998,40.0]
[1673400540248,20.0,16.014,15.998,40.0]
[1673400540792,66.86,16.014,15.998,20.0]
[1673400541713,17.0,16.013,15.998,20.0]
[1673400541921,187.0,16.011,15.982,20.31285]
[1673400542132,187.0,16.009,15.986,112.316]
[1673400542341,63.87,16.008,15.986,112.316]
[1673400542557,20.0,16.007,15.987,20.0]
[1673400542784,46.88,16.006,15.987,20.0]
[1673400543187,66.88,16.007,15.99,26.69]
[1673400543392,17.0,16.006,15.99,26.69]
[1673400543632,46.88,16.005,15.987,20.0]
[1673400543937,17.0,16.004,15.987,20.0]
[1673400544340,20.0,16.004,15.987,20.0]
[1673400544553,20.0,16.004,15.986,112.316]
[1673400544554,26.52,16.0,15.982,0.31285]
[1673400544763,54.04832,15.999,15.982,0.31285]
[1673400544977,7.14832,15.998,15.982,0.31285]
[1673400545197,63.91,15.997,15.982,0.31285]
[1673400545413,20.0,15.996,15.982,0.31285]
[1673400545604,46.91,15.995,15.982,0.31285]
[1673400545815,17.0,15.994,15.982,0.31285]
[1673400546368,46.91,15.995,15.982,0.31285]
[1673400546556,46.91,15.997,15.982,0.31285]
[1673400546764,46.9,15.999,15.982,0.31285]
[1673400546980,20.0,15.997,15.982,0.31285]
[1673400547187,63.91,15.996,15.982,0.31285]
[1673400548122,26.67,15.99,15.982,0.31285]
[1673400548338,20.0,15.988,15.982,0.31285]
[1673400548558,54.08832,15.987,15.982,0.31285]
[1673400548865,20.0,15.986,15.982,0.31285]
[1673400549081,63.94,15.985,15.982,0.31285]
[1673400549295,20.0,15.984,15.982,0.31285]
[1673400549509,63.95,15.983,15.982,0.31285]
[1673400550137,20.31,15.982,15.963,111.8149]
[1673400550350,63.95,15.981,15.963,111.8149]
[1673400551197,46.95,15.981,15.963,111.8149]
[1673400551402,20.0,15.984,15.966,20.0]
[1673400551817,46.95,15.983,15.966,20.0]
[1673400552037,46.95,15.983,15.967,20.0]
[1673400552878,20.0,15.984,15.968,119.3717]
[1673400553096,46.95,15.983,15.969,20.0]
[1673400554023,17.0,15.982,15.969,20.0]
[1673400554357,46.95,15.983,15.969,20.0]
[1673400554879,17.0,15.982,15.969,20.0]
[1673400555203,46.95,15.983,15.969,20.0]
[1673400555204,46.95,15.983,15.969,40.0]
[1673400555506,46.94,15.985,15.969,40.0]
[1673400555719,46.94,15.985,15.97,20.0]
[1673400555911,20.0,15.986,15.969,20.0]
[1673400556122,187.0,15.984,15.969,20.0]
[1673400556335,74.09832,15.983,15.969,20.0]
[1673400556965,26.55,15.98,15.969,20.0]
[1673400557181,20.0,15.978,15.964,20.0]
[1673400557395,17.0,15.977,15.964,20.0]
[1673400557604,20.0,15.978,15.964,20.0]
[1673400557811,20.0,15.978,15.963,111.8149]
[1673400558027,63.97,15.977,15.963,111.8149]
[1673400558245,46.97,15.977,15.963,111.8149]
[1673400558435,66.96,15.978,15.963,111.8149]
[1673400558646,17.0,15.977,15.963,111.8149]
[1673400558865,66.96,15.978,15.963,111.8149]
[1673400559716,17.0,15.977,15.963,111.8149]
[1673400561189,46.97,15.976,15.963,111.8149]
[1673400561399,17.0,15.975,15.963,111.8149]
[1673400561801,17.0,15.976,15.963,111.8149]
[1673400562010,17.0,15.976,15.961,25.049985]
[1673400562220,20.0,15.974,15.961,25.049985]
[1673400562440,17.0,15.973,15.961,25.049985]
[1673400563606,20.0,15.974,15.961,25.049985]
[1673400563821,17.0,15.973,15.961,25.049985]
[1673400564032,20.0,15.972,15.961,25.049985]
[1673400564553,17.0,15.971,15.961,25.049985]
[1673400565173,20.0,15.97,15.961,25.049985]
[1673400565394,17.0,15.969,15.961,25.049985]
[1673400567500,20.0,15.972,15.961,25.049985]
[1673400567707,17.0,15.971,15.961,25.049985]
[1673400568117,20.0,15.972,15.961,25.049985]
[1673400569391,46.97,15.975,15.961,25.049985]
[1673400569587,100.87363066,15.978,15.961,25.049985]
[1673400569588,66.96,15.978,15.961,25.049985]
[1673400569788,20.0,15.978,15.961,25.049985]
[1673400570122,7.14832,15.977,15.961,25.049985]
[1673400570336,20.0,15.978,15.962,116.9499]
[1673400570738,20.0,15.978,15.961,25.049985]
[1673400570739,207.0,15.978,15.961,25.049985]
[1673400570949,187.0,15.976,15.961,25.049985]
[1673400571162,74.11832,15.975,15.961,25.049985]
[1673400571788,27.14832,15.975,15.961,25.049985]
[1673400572219,74.11832,15.975,15.961,25.049985]
[1673400572649,27.14832,15.975,15.961,25.049985]
[1673400572850,7.14832,15.975,15.961,45.049985]
[1673400573073,7.14832,15.975,15.962,20.0]
[1673400573388,20.0,15.978,15.962,20.0]
[1673400573820,20.0,15.976,15.961,25.049985]
[1673400574003,66.96,15.978,15.962,20.0]
[1673400574207,20.0,15.978,15.962,20.0]
[1673400574653,1085.06706951,15.979,15.962,20.0]
[1673400574841,1085.06706951,15.979,15.961,25.049985]
[1673400575051,54.10832,15.978,15.961,25.049985]
[1673400575261,7.14832,15.977,15.961,25.049985]
[1673400575483,20.0,15.975,15.961,25.049985]
[1673400575695,46.97,15.974,15.961,25.049985]
[1673400575905,26.67,15.97,15.961,25.049985]
[1673400576123,91.13832,15.969,15.961,25.049985]
[1673400576328,20.0,15.968,15.961,25.049985]
[1673400576541,63.99,15.967,15.961,25.049985]
[1673400576738,7.14832,15.969,15.961,25.049985]
[1673400576946,207.0,15.975,15.961,25.049985]
[1673400577179,20.0,15.969,15.961,25.049985]
[1673400577371,63.99,15.968,15.961,25.049985]
[1673400578735,17.0,15.968,15.961,25.049985]
[1673400580639,46.99,15.969,15.961,25.049985]
[1673400580855,7.14832,15.974,15.961,25.049985]
[1673400582117,20.0,15.975,15.962,108.2911]
[1673400583245,20.0,15.977,15.962,108.2911]
[1673400583466,77.53844445,15.98,15.962,108.2911]
[1673400583467,26.67,15.98,15.963,20.0]
[1673400583681,1132.02706951,15.979,15.963,20.0]
[1673400584009,20.0,15.979,15.963,20.0]
[1673400584642,20.0,15.982,15.963,20.0]
[1673400584860,20.0,15.98,15.963,20.0]
[1673400585070,313.75,15.98,15.961,25.049985]
[1673400585259,26.55,15.97,15.961,25.049985]
[1673400585469,20.0,15.968,15.961,25.049985]
[1673400585674,46.99,15.967,15.961,25.049985]
[1673400585890,50.88120257,15.969,15.961,25.049985]
[1673400586431,233.97,15.975,15.961,25.049985]
[1673400586626,37.0,15.974,15.961,25.049985]
[1673400586836,20.0,15.972,15.961,25.049985]
[1673400587049,17.0,15.971,15.961,25.049985]
[1673400587681,63.98,15.971,15.961,25.049985]
[1673400587898,17.0,15.971,15.961,25.049985]
[1673400588096,17.0,15.972,15.961,25.049985]
[1673400588306,26.52,15.97,15.961,25.049985]
[1673400588516,17.0,15.969,15.961,25.049985]
[1673400588945,46.98,15.972,15.961,25.049985]
[1673400589164,37.0,15.971,15.961,25.049985]
[1673400589461,44.23664,15.971,15.961,25.049985]
[1673400589897,7.23664,15.971,15.961,25.049985]
[1673400590108,20.0,15.97,15.961,25.049985]
[1673400590512,7.23664,15.971,15.961,25.049985]
[1673400590739,46.5,15.98,15.961,25.049985]
[1673400590740,46.96,15.979,15.961,25.049985]
[1673400590946,20.0,15.978,15.962,129.3558]
[1673400591476,54.19664,15.977,15.962,129.3558]
[1673400591702,20.0,15.976,15.962,129.3558]
[1673400591996,46.96,15.977,15.962,129.3558]
[1673400592217,46.96,15.98,15.962,129.3558]
[1673400592421,46.94,15.985,15.963,17.0]
[1673400592733,20.0,15.984,15.964,20.0]
[1673400593352,241.18664,15.983,15.962,129.3558]
[1673400593682,7.23664,15.982,15.962,109.3558]
[1673400593998,213.52,15.98,15.962,109.3558]
[1673400594210,20.0,15.978,15.962,109.3558]
[1673400594397,250.96,15.977,15.962,109.3558]
[1673400594612,7.23664,15.976,15.962,109.3558]
[1673400594950,20.0,15.974,15.962,109.3558]
[1673400595253,17.0,15.973,15.962,109.3558]
[1673400595490,7.23664,15.976,15.963,20.0]
[1673400595660,46.96,15.979,15.963,20.0]
[1673400595876,46.95,15.983,15.963,20.0]
[1673400596185,20.0,15.982,15.963,20.0]
[1673400596526,66.95,15.981,15.963,20.0]
[1673400597144,26.55,15.98,15.962,109.3558]
[1673400597362,63.96,15.979,15.962,109.3558]
[1673400597767,17.0,15.979,15.962,109.3558]
[1673400597982,46.95,15.981,15.963,20.0]
[1673400598189,46.95,15.983,15.963,20.0]
[1673400598618,46.95,15.983,15.965,20.0]
[1673400600410,46.95,15.983,15.97,26.57]
[1673400600602,187.0,15.999,15.971,128.5363]
[1673400600812,27.23664,15.998,15.972,2.18259595]
[1673400601031,7.23664,15.997,15.972,2.18259595]
[1673400601245,187.0,15.996,15.971,108.5363]
[1673400601564,187.0,15.994,15.972,20.0]
[1673400601783,207.0,15.992,15.972,20.0]
[1673400602088,54.15664,15.991,15.972,20.0]
[1673400602402,20.0,15.99,15.972,20.0]
[1673400602616,46.93,15.989,15.972,20.0]
[1673400602826,46.93,15.99,15.972,20.0]
[1673400603053,46.92,15.991,15.972,20.0]
[1673400603573,46.91,15.994,15.973,17.0]
[1673400603766,46.9,15.998,15.975,1.71234103]
[1673400603972,233.9,15.999,15.977,1.71234103]
[1673400604182,233.9,15.999,15.98,26.57]
[1673400604183,46.9,15.999,15.98,26.57]
[1673400604391,46.9,15.999,15.981,117.6627]
[1673400604623,46.9,15.999,15.982,20.0]
[1673400604830,26.5,16.0,15.982,20.0]
[1673400605040,46.9,15.999,15.982,20.0]
[1673400605242,46.89,16.004,15.981,117.6627]
[1673400605456,46.87,16.008,15.982,37.0]
[1673400605652,26.55,16.0,15.981,161.72208143]
[1673400605866,46.9,15.999,15.981,117.6627]
[1673400606502,46.9,15.999,15.982,20.0]
[1673400608813,17.0,15.998,15.982,20.0]
[1673400609024,46.91,15.997,15.982,20.0]
[1673400609340,17.0,15.996,15.982,20.0]
[1673400609752,46.91,15.997,15.982,20.0]
[1673400609963,46.9,15.999,15.982,20.0]
[1673400610193,20.0,16.009,15.983,37.0]
[1673400610194,46.88,16.005,15.983,37.0]
[1673400610397,46.87,16.008,15.985,20.0]
[1673400610716,46.87,16.008,15.987,20.0]
[1673400610928,46.87,16.008,15.988,20.0]
[1673400611144,46.87,16.008,15.989,20.0]
[1673400611455,46.87,16.008,15.99,133.1088]
[1673400611852,54.10664,16.008,15.99,133.1088]
[1673400612274,20.0,16.007,15.99,133.1088]
[1673400612614,46.88,16.006,15.991,20.0]
[1673400612804,46.88,16.007,15.992,119.2643]
[1673400613560,46.88,16.007,15.993,20.0]
[1673400613957,46.86,16.014,15.993,20.0]
[1673400614175,20.0,16.013,15.993,20.0]
[1673400614396,26.52,16.01,15.992,119.2643]
[1673400614726,46.87,16.009,15.992,119.2643]
[1673400616286,17.0,16.008,15.992,119.2643]
[1673400616508,46.88,16.007,15.993,20.0]
[1673400616716,17.0,16.006,15.993,20.0]
[1673400617250,46.87,16.009,15.993,20.0]
[1673400618597,46.86,16.011,15.993,20.0]
[1673400619541,20.0,16.01,15.993,20.0]
[1673400619759,46.87,16.009,15.993,20.0]
[1673400620064,17.0,16.008,15.993,20.0]
[1673400620819,46.87,16.009,15.993,20.0]
[1673400621012,46.86,16.011,15.993,20.0]
[1673400621343,17.0,16.01,15.993,20.0]
[1673400621556,46.87,16.009,15.993,20.0]
[1673400622498,17.0,16.008,15.993,20.0]
[1673400622712,46.88,16.007,15.993,20.0]
[1673400622916,17.0,16.006,15.992,119.2643]
[1673400623445,20.0,15.999,15.984,119.2643]
[1673400623661,63.9,15.998,15.986,117.2115]
[1673400623858,46.9,15.998,15.986,117.2115]
[1673400624067,46.9,15.999,15.986,117.2115]
[1673400625319,17.0,15.998,15.986,117.2115]
[1673400625767,20.0,15.997,15.986,117.2115]
[1673400625982,63.91,15.996,15.986,117.2115]
[1673400626604,250.91,15.996,15.97,133.13]
[1673400626813,250.91,15.996,15.978,137.4067]
[1673400627025,27.23664,15.995,15.979,20.0]
[1673400627240,71.14664,15.994,15.98,20.0]
[1673400627460,46.91,15.994,15.981,20.0]
[1673400627778,17.0,15.996,15.981,20.0]
[1673400627974,17.0,15.997,15.981,20.0]
[1673400628188,46.91,15.996,15.981,20.0]
[1673400628396,17.0,15.995,15.981,20.0]
[1673400628837,46.9,15.998,15.981,68.4572914]
[1673400629020,46.9,15.999,15.981,68.4572914]
[1673400629556,233.88,16.006,15.983,20.0]
[1673400629768,20.0,16.005,15.984,112.6776]
[1673400629979,46.89,16.004,15.985,20.0]
[1673400630186,20.0,16.003,15.985,67.04055542]
[1673400630394,46.89,16.002,15.986,119.633]
[1673400630800,26.55,16.0,15.986,119.633]
[1673400631015,73.45,16.0,15.987,20.0]
[1673400631249,26.55,16.0,15.987,20.0]
[1673400632492,46.89,16.002,15.987,20.0]
[1673400632698,20.0,16.003,15.987,131.35784681]
[1673400632908,20.0,16.004,15.987,131.35784681]
[1673400633138,46.89,16.003,15.987,131.35784681]
[1673400633541,46.89,16.003,15.988,20.0]
[1673400633869,46.88,16.007,15.989,20.0]
[1673400634061,26.67,16.01,15.989,20.0]
[1673400634062,46.87,16.008,15.99,20.0]
[1673400634270,17.0,16.007,15.991,20.0]
[1673400634901,17.0,16.007,15.992,108.7465]
[1673400635223,20.0,16.006,15.992,108.7465]
[1673400635440,83.88,16.005,15.987,20.0]
[1673400635640,20.0,16.004,15.987,20.0]
[1673400635851,63.89,16.003,15.987,20.0]
[1673400640690,20.0,16.002,15.987,20.0]
[1673400640924,46.89,16.001,15.987,78.42395806]
[1673400641228,46.89,16.003,15.987,78.42395806]
[1673400641869,46.89,16.003,15.987,137.94451348]
[1673400642390,17.0,16.002,15.987,137.94451348]
[1673400642792,46.88,16.005,15.987,137.94451348]
[1673400643008,46.87,16.008,15.989,20.0]
[1673400643333,20.0,16.008,15.99,137.94451348]
[1673400643550,20.0,16.008,15.991,20.0]
[1673400643944,20.0,16.008,15.99,79.52055542]
[1673400644169,20.0,16.006,15.99,20.0]
[1673400644377,46.88,16.005,15.99,20.0]
[1673400644600,46.88,16.006,15.988,20.0]
[1673400644794,46.88,16.006,15.99,59.52055542]
[1673400645117,26.57,16.01,15.99,147.08384682]
[1673400645332,66.87,16.009,15.991,20.0]
[1673400645744,46.87,16.009,15.991,20.0]
[1673400645960,26.57,16.01,15.992,117.1895]
[1673400646153,26.57,16.01,15.993,137.537]
[1673400646571,26.57,16.01,15.994,20.0]
[1673400648378,46.84,16.018,15.995,17.0]
[1673400648575,46.84,16.019,15.996,40.0]
[1673400648781,207.0,16.018,15.996,128.59492391]
[1673400648991,46.85,16.017,15.996,128.59492391]
[1673400649202,20.0,16.016,15.996,230.46922433]
[1673400649735,46.85,16.017,15.997,88.59492391]
[1673400649947,46.85,16.017,15.999,20.0]
[1673400650153,46.85,16.017,16.0,249.2109]
[1673400650573,20.0,16.018,16.0,149.2109]
[1673400650796,20.0,16.018,16.001,20.0]
[1673400651530,46.84,16.019,16.002,101.87430042]
[1673400651734,1257.48041353,16.036,16.002,101.87430042]
[1673400651735,46.81,16.029,16.01,26.73]
[1673400651975,46.81,16.029,16.011,119.65118843]
[1673400652286,46.81,16.029,16.012,20.0]
[1673400652496,26.67,16.03,16.012,121.87430042]
[1673400652810,73.48,16.03,16.013,2.47387281]
[1673400653530,20.0,16.029,16.013,2.47387281]
[1673400653857,20.0,16.027,16.012,2.47387281]
[1673400654466,20.0,16.027,16.012,2.34567111]
[1673400654691,20.0,16.025,16.012,2.34567111]
[1673400654903,20.0,16.025,16.011,117.2277]
[1673400655308,26.55,16.02,16.0,46.62]
[1673400655528,250.84,16.019,16.002,118.4424]
[1673400655732,20.0,16.018,16.002,118.4424]
[1673400655956,63.85,16.017,16.002,118.4424]
[1673400656585,63.85,16.017,16.002,230.2163]
[1673400658058,20.0,16.016,16.002,230.2163]
[1673400658364,63.85,16.015,16.002,230.2163]
[1673400658578,20.0,16.014,16.002,230.2163]
[1673400658786,17.0,16.013,16.002,230.2163]
[1673400658990,46.85,16.015,16.002,230.2163]
[1673400659195,17.0,16.014,16.002,230.2163]
[1673400661199,46.85,16.017,16.002,230.2163]
[1673400661836,20.0,16.016,16.002,230.2163]
[1673400662152,46.85,16.015,16.002,230.2163]
[1673400662367,46.85,16.017,16.002,230.2163]
[1673400662559,20.0,16.018,16.002,230.2163]
[1673400663951,17.0,16.017,16.002,230.2163]
[1673400664772,35.55825296,16.017,16.002,230.2163]
[1673400664989,20.0,16.016,16.002,230.2163]
[1673400665305,17.0,16.015,16.002,230.2163]
[1673400666023,17.0,16.016,16.003,20.0]
[1673400666444,46.84,16.019,16.003,20.0]
[1673400666445,18.55825296,16.019,16.003,20.0]
[1673400666660,26.51,16.02,16.003,20.0]
[1673400666984,18.55825296,16.025,16.003,20.0]
[1673400667177,20.0,16.029,16.004,37.0]
[1673400667706,339.13825296,16.03,16.004,37.0]
[1673400668028,45.79489296,16.029,16.005,20.0]
[1673400668356,45.79489296,16.029,16.006,20.0]
[1673400668962,17.0,16.028,16.007,20.0]
[1673400669274,35.55825296,16.028,16.008,20.0]
[1673400669924,17.0,16.028,16.009,20.0]
[1673400670139,17.0,16.028,16.01,20.0]
[1673400670343,17.0,16.028,16.011,119.7324]
[1673400670557,17.0,16.028,16.012,20.0]
[1673400671401,14.5,16.028,16.012,20.0]
[1673400672447,7.23664,16.029,16.012,20.0]
[1673400672664,26.67,16.03,16.013,1.42926789]
[1673400672863,26.67,16.03,16.012,20.0]
[1673400673071,26.67,16.03,16.013,1.6837168]
[1673400673278,46.79,16.038,16.013,18.6837168]
[1673400673490,52.7417967,16.039,16.02,26.73]
[1673400673819,5.9617967,16.039,16.022,20.0]
[1673400674032,5.9617967,16.039,16.023,1.70292996]
[1673400674658,52.7417967,16.039,16.023,1.70292996]
[1673400674872,17.0,16.038,16.023,1.70292996]
[1673400676339,52.7417967,16.039,16.023,1.70292996]
[1673400677815,17.0,16.038,16.023,1.70292996]
[1673400679704,259.58489296,16.037,16.021,109.7093]
[1673400679908,231.23664,16.036,16.021,109.7093]
[1673400680122,46.8,16.035,16.021,109.7093]
[1673400680440,17.0,16.034,16.021,109.7093]
[1673400680655,46.8,16.033,16.021,109.7093]
[1673400680965,17.0,16.032,16.021,109.7093]
[1673400681155,17.0,16.032,16.022,20.0]
[1673400681803,46.8,16.035,16.022,20.0]
[1673400682016,52.7417967,16.039,16.022,20.0]
[1673400682848,20.0,16.038,16.022,20.0]
[1673400683063,46.79,16.037,16.022,20.0]
[1673400683389,17.0,16.036,16.022,20.0]
[1673400683997,17.0,16.036,16.021,129.7093]
[1673400683998,46.8,16.035,16.021,109.7093]
[1673400684314,17.0,16.034,16.021,109.7093]
[1673400684954,250.8,16.035,16.021,109.7093]
[1673400685162,250.8,16.035,16.02,110.1265]
[1673400685163,20.0,16.029,16.01,40.0]
[1673400685373,20.0,16.029,16.013,111.3148]
[1673400685374,250.82,16.028,16.013,111.3148]
[1673400685577,20.0,16.027,16.013,111.3148]
[1673400685791,63.82,16.026,16.013,111.3148]
[1673400686319,46.82,16.028,16.014,20.0]
[1673400686531,26.57,16.03,16.014,20.0]
[1673400687155,46.81,16.029,16.014,20.0]
[1673400687369,26.57,16.03,16.014,20.0]
[1673400687796,46.81,16.029,16.014,20.0]
[1673400688841,17.0,16.028,16.014,20.0]
[1673400691157,24.23664,16.028,16.013,111.3148]
[1673400691375,46.82,16.027,16.013,111.3148]
[1673400691562,26.57,16.03,16.014,20.0]
[1673400692320,26.57,16.03,16.015,17.0]
[1673400692635,46.8,16.033,16.016,40.0]
[1673400692822,46.8,16.035,16.016,40.0]
[1673400693038,46.79,16.036,16.018,20.0]
[1673400693257,46.79,16.037,16.019,20.0]
[1673400694094,20.0,16.036,16.02,230.3912]
[1673400694433,46.8,16.035,16.021,40.0]
[1673400695358,46.79,16.037,16.021,40.0]
[1673400696861,17.0,16.036,16.021,40.0]
[1673400700736,17.0,16.036,16.022,20.0]
[1673400700952,17.0,16.037,16.022,20.0]
[1673400701681,17.0,16.037,16.021,40.0]
[1673400701870,66.79,16.038,16.021,40.0]
[1673400702085,66.79,16.038,16.022,20.0]
[1673400702514,20.0,16.038,16.022,20.0]
[1673400702721,52.7417967,16.039,16.022,20.0]
[1673400703132,20.0,16.038,16.022,20.0]
[1673400703341,46.79,16.037,16.022,20.0]
[1673400703550,20.0,16.038,16.022,20.0]
[1673400703762,46.79,16.037,16.022,20.0]
[1673400703984,17.0,16.036,16.022,20.0]
[1673400704388,17.0,16.037,16.022,20.0]
[1673400708095,63.79,16.037,16.022,20.0]
[1673400708310,17.0,16.037,16.022,20.0]
[1673400710486,5.9617967,16.039,16.022,20.0]
[1673400710700,5.9617967,16.039,16.023,17.0]
[1673400711122,5.9617967,16.039,16.024,20.0]
[1673400711329,5.9617967,16.039,16.025,17.0]
[1673400711550,5.9617967,16.039,16.026,20.0]
[1673400713018,5.9617967,16.039,16.028,20.0]
[1673400713251,5.9617967,16.039,16.029,134.0393]
[1673400713446,5.9617967,16.039,16.03,20.0]
[1673400713637,5.9617967,16.039,16.031,20.0]
[1673400716830,5.9617967,16.039,16.032,20.0]
[1673400718807,9.67e-05,16.039,16.032,20.0]
[1673400719002,9.67e-05,16.039,16.033,1.47280796]
[1673400719649,9.67e-05,16.039,16.034,117.8281]
[1673400719842,9.67e-05,16.039,16.035,1.47183484]
[1673400720059,9.67e-05,16.039,16.035,20.0]
[1673400720268,9.67e-05,16.039,16.036,1.41300787]
[1673400720485,9.67e-05,16.039,16.034,117.8281]
[1673400720705,9.67e-05,16.039,16.035,1.42959606]
[1673400720906,9.67e-05,16.039,16.034,117.8281]
[1673400721327,9.67e-05,16.039,16.02,116.3668]
[1673400721544,46.79,16.038,16.02,116.3668]
[1673400721742,17.0,16.037,16.023,115.3743]
[1673400721955,46.79,16.036,16.023,115.3743]
[1673400722280,17.0,16.035,16.023,115.3743]
[1673400722471,46.8,16.034,16.023,115.3743]
[1673400722683,17.0,16.033,16.023,115.3743]
[1673400723836,26.34,16.03,16.0,133.39]
[1673400724063,20.0,16.028,16.015,115.3743]
[1673400724275,46.82,16.027,16.015,115.3743]
[1673400724467,17.0,16.026,16.015,115.3743]
[1673400724796,17.0,16.026,16.016,20.0]
[1673400725115,17.0,16.027,16.016,20.0]
[1673400725311,17.0,16.028,16.016,20.0]
[1673400725520,46.82,16.027,16.016,20.0]
[1673400725726,17.0,16.026,16.016,20.0]
[1673400726677,17.0,16.026,16.003,20.0]
[1673400726903,46.82,16.025,16.012,138.281]
[1673400727100,17.0,16.024,16.012,138.281]
[1673400730268,20.0,16.032,16.012,138.281]
[1673400730584,20.0,16.034,16.013,17.0]
[1673400730778,46.8,16.033,16.012,138.281]
[1673400730988,26.56,16.03,16.012,138.281]
[1673400731407,233.81,16.029,16.012,138.281]